[Event "*** Titled Tuesday Blitz"]
[Site "Chess.com"]
[Date "2020.11.03"]
[Round "8"]
[White "Natalya_Buksa"]
[Black "woodhy"]
[Result "0-1"]
[WhiteElo "2524"]
[BlackElo "2483"]
[TimeControl "180+1"]
[EndTime "11:33:50 PST"]
[Termination "woodhy won by checkmate"]

1. d4 {[%clk 0:02:54.3]} 1... Nf6 {[%clk 0:02:58.2]} 2. Nc3 {[%clk 0:02:54.4]}
2... e6 {[%clk 0:02:50.7]} 3. e4 {[%clk 0:02:53.9]} 3... d5 {[%clk 0:02:50.5]}
4. Bd3 {[%clk 0:02:53.2]} 4... dxe4 {[%clk 0:02:44.6]} 5. Nxe4 {[%clk 0:02:53]}
5... Nbd7 {[%clk 0:02:45.5]} 6. Nf3 {[%clk 0:02:51.9]} 6... Be7 {[%clk
0:02:39.7]} 7. O-O {[%clk 0:02:45.1]} 7... b6 {[%clk 0:02:40.1]} 8. c4 {[%clk
0:02:42.7]} 8... Bb7 {[%clk 0:02:40]} 9. Re1 {[%clk 0:02:42.6]} 9... O-O {[%clk
0:02:39.7]} 10. Bf4 {[%clk 0:02:40.6]} 10... c5 {[%clk 0:02:28.8]} 11. Nd6
{[%clk 0:02:16.3]} 11... Bxd6 {[%clk 0:02:08.4]} 12. Bxd6 {[%clk 0:02:15.8]}
12... Re8 {[%clk 0:02:09.3]} 13. Bc2 {[%clk 0:02:10.4]} 13... Bxf3 {[%clk
0:02:03.2]} 14. Qxf3 {[%clk 0:02:10]} 14... cxd4 {[%clk 0:02:03.6]} 15. Rad1
{[%clk 0:01:55.5]} 15... e5 {[%clk 0:02:03.8]} 16. Ba4 {[%clk 0:01:56]} 16...
Rc8 {[%clk 0:01:58.4]} 17. Bxd7 {[%clk 0:01:54.1]} 17... Nxd7 {[%clk 0:01:52.5]}
18. b3 {[%clk 0:01:53.5]} 18... Re6 {[%clk 0:01:46.8]} 19. Ba3 {[%clk
0:01:51.4]} 19... Qe8 {[%clk 0:01:43.2]} 20. Qb7 {[%clk 0:01:47.5]} 20... Nc5
{[%clk 0:01:10.1]} 21. Bxc5 {[%clk 0:01:32.7]} 21... Rxc5 {[%clk 0:01:11]} 22.
Qxa7 {[%clk 0:01:26.3]} 22... Ra5 {[%clk 0:01:09.4]} 23. Qc7 {[%clk 0:01:26.6]}
23... Rxa2 {[%clk 0:01:07.3]} 24. b4 {[%clk 0:01:25.9]} 24... Rc2 {[%clk
0:01:05.7]} 25. c5 {[%clk 0:01:25.1]} 25... bxc5 {[%clk 0:01:06.6]} 26. bxc5
{[%clk 0:01:24.6]} 26... h6 {[%clk 0:01:06.5]} 27. Rb1 {[%clk 0:01:16.3]} 27...
Kh7 {[%clk 0:00:50]} 28. Rb7 {[%clk 0:01:00.9]} 28... Rf6 {[%clk 0:00:43]} 29.
Rb8 {[%clk 0:00:54.6]} 29... Qc6 {[%clk 0:00:37.5]} 30. Qxc6 {[%clk 0:00:26.4]}
30... Rxc6 {[%clk 0:00:36.5]} 31. f3 {[%clk 0:00:26.8]} 31... R2xc5 {[%clk
0:00:35.6]} 32. Rd8 {[%clk 0:00:26.9]} 32... Re6 {[%clk 0:00:32.5]} 33. Kf2
{[%clk 0:00:27.1]} 33... Rc2+ {[%clk 0:00:31.2]} 34. Kf1 {[%clk 0:00:27.6]}
34... Kg6 {[%clk 0:00:29.9]} 35. h4 {[%clk 0:00:27.1]} 35... h5 {[%clk
0:00:28.4]} 36. Rd7 {[%clk 0:00:25]} 36... Kf6 {[%clk 0:00:27.4]} 37. Rd5 {[%clk
0:00:25]} 37... Kf5 {[%clk 0:00:25.9]} 38. Re4 {[%clk 0:00:23.6]} 38... f6
{[%clk 0:00:23.3]} 39. Rexd4 {[%clk 0:00:23.9]} 39... Rb6 {[%clk 0:00:20.9]} 40.
Rd2 {[%clk 0:00:19.4]} 40... Rb1+ {[%clk 0:00:19]} 41. Kf2 {[%clk 0:00:19.3]}
41... Rcc1 {[%clk 0:00:19]} 42. Rd7 {[%clk 0:00:17.6]} 42... g6 {[%clk
0:00:18.1]} 43. Kg3 {[%clk 0:00:17.6]} 43... Rc6 {[%clk 0:00:17.8]} 44. Rf7
{[%clk 0:00:14]} 44... Rbb6 {[%clk 0:00:16.6]} 45. Re2 {[%clk 0:00:13.5]} 45...
Rb3 {[%clk 0:00:16.6]} 46. Kf2 {[%clk 0:00:13.6]} 46... Re6 {[%clk 0:00:16.5]}
47. Rg7 {[%clk 0:00:14]} 47... Rb4 {[%clk 0:00:15.9]} 48. g3 {[%clk 0:00:13.8]}
48... e4 {[%clk 0:00:16.3]} 49. f4 {[%clk 0:00:13.9]} 49... Rb3 {[%clk 0:00:15]}
50. Rc7 {[%clk 0:00:13.3]} 50... Rf3+ {[%clk 0:00:14.8]} 51. Kg2 {[%clk
0:00:13.1]} 51... Kg4 {[%clk 0:00:15.7]} 52. Rg7 {[%clk 0:00:10.3]} 52... Rxg3+
{[%clk 0:00:15.9]} 53. Kf2 {[%clk 0:00:10.1]} 53... f5 {[%clk 0:00:16.5]} 54.
Ra7 {[%clk 0:00:07.5]} 54... Kxf4 {[%clk 0:00:16.3]} 55. Re1 {[%clk 0:00:07]}
55... Rf3+ {[%clk 0:00:16.1]} 56. Kg2 {[%clk 0:00:06.4]} 56... Kg4 {[%clk
0:00:16.6]} 57. Ra2 {[%clk 0:00:05.8]} 57... Kxh4 {[%clk 0:00:16.6]} 58. Rh1+
{[%clk 0:00:06.4]} 58... Kg4 {[%clk 0:00:16.9]} 59. Re1 {[%clk 0:00:06.4]} 59...
h4 {[%clk 0:00:17.8]} 60. Kh2 {[%clk 0:00:06.6]} 60... h3 {[%clk 0:00:18.1]} 61.
Rg1+ {[%clk 0:00:06.8]} 61... Kf4 {[%clk 0:00:17.8]} 62. Ra8 {[%clk 0:00:07.2]}
62... g5 {[%clk 0:00:17.7]} 63. Rg8 {[%clk 0:00:06.2]} 63... g4 {[%clk
0:00:17.9]} 64. Rf8 {[%clk 0:00:06.5]} 64... Rd6 {[%clk 0:00:18]} 65. Rb1 {[%clk
0:00:05.7]} 65... Rd2+ {[%clk 0:00:17.9]} 66. Kh1 {[%clk 0:00:06.2]} 66... g3
{[%clk 0:00:17.7]} 67. Rg8 {[%clk 0:00:04.7]} 67... g2+ {[%clk 0:00:15.3]} 68.
Kh2 {[%clk 0:00:05.1]} 68... Rf1 {[%clk 0:00:14.9]} 69. Rxf1+ {[%clk 0:00:04.1]}
69... gxf1=Q+ {[%clk 0:00:12.8]} 70. Rg2 {[%clk 0:00:02.1]} 70... Qxg2# {[%clk
0:00:13.7]} 0-1

[Event "*** Titled Tuesday Blitz"]
[Site "Chess.com"]
[Date "2020.11.03"]
[Round "8"]
[White "Witik"]
[Black "Lysiak_Poltorak"]
[Result "1-0"]
[WhiteElo "2611"]
[BlackElo "2360"]
[TimeControl "180+1"]
[EndTime "11:33:51 PST"]
[Termination "Witik won by checkmate"]

1. e4 {[%clk 0:03:00.9]} 1... c6 {[%clk 0:03:00.2]} 2. d4 {[%clk 0:03:00.6]}
2... d5 {[%clk 0:03:00.1]} 3. e5 {[%clk 0:03:01]} 3... Bf5 {[%clk 0:02:59.6]} 4.
h4 {[%clk 0:03:00.4]} 4... Qb6 {[%clk 0:02:56.5]} 5. g4 {[%clk 0:02:58.5]} 5...
Bd7 {[%clk 0:02:56.1]} 6. h5 {[%clk 0:02:58.2]} 6... e6 {[%clk 0:02:55.5]} 7. f4
{[%clk 0:02:56.7]} 7... c5 {[%clk 0:02:55.9]} 8. Nf3 {[%clk 0:02:56.8]} 8...
cxd4 {[%clk 0:02:55.4]} 9. Bd3 {[%clk 0:02:53.8]} 9... Bc5 {[%clk 0:02:51.4]}
10. a3 {[%clk 0:02:49.5]} 10... a5 {[%clk 0:02:48.9]} 11. O-O {[%clk 0:02:49.1]}
11... Ne7 {[%clk 0:02:40.9]} 12. Nbd2 {[%clk 0:02:41]} 12... Bb5 {[%clk
0:02:39.8]} 13. Nb3 {[%clk 0:02:39.1]} 13... Nbc6 {[%clk 0:02:31.8]} 14. f5
{[%clk 0:02:27.8]} 14... Bxd3 {[%clk 0:02:10.7]} 15. Qxd3 {[%clk 0:02:27.2]}
15... a4 {[%clk 0:02:10]} 16. Nxc5 {[%clk 0:02:26.5]} 16... Qxc5 {[%clk
0:02:09.7]} 17. f6 {[%clk 0:01:37.4]} 17... gxf6 {[%clk 0:02:00]} 18. exf6
{[%clk 0:01:37.5]} 18... Nc8 {[%clk 0:01:56.6]} 19. Bh6 {[%clk 0:01:37]} 19...
Nd6 {[%clk 0:01:52.4]} 20. Bg7 {[%clk 0:01:34]} 20... Rg8 {[%clk 0:01:51.8]} 21.
Qxh7 {[%clk 0:00:56.5]} 21... O-O-O {[%clk 0:01:46.4]} 22. Qd3 {[%clk
0:00:48.8]} 22... e5 {[%clk 0:01:42.8]} 23. Ng5 {[%clk 0:00:41.5]} 23... e4
{[%clk 0:01:39.1]} 24. Qh3 {[%clk 0:00:37.8]} 24... d3+ {[%clk 0:01:32.7]} 25.
Kh1 {[%clk 0:00:36]} 25... d2 {[%clk 0:01:24]} 26. h6 {[%clk 0:00:29.7]} 26...
d4 {[%clk 0:01:19.8]} 27. Qh5 {[%clk 0:00:12.2]} 27... e3 {[%clk 0:01:14.9]} 28.
h7 {[%clk 0:00:12.3]} 28... e2 {[%clk 0:01:13.2]} 29. hxg8=Q {[%clk 0:00:11.2]}
29... Rxg8 {[%clk 0:01:12.1]} 30. Rg1 {[%clk 0:00:10.9]} 30... Qd5+ {[%clk
0:01:07.4]} 31. Kh2 {[%clk 0:00:10.8]} 31... Qe5+ {[%clk 0:01:06.4]} 32. Kh3
{[%clk 0:00:09.1]} 32... e1=Q {[%clk 0:01:06.8]} 33. Raxe1 {[%clk 0:00:08.8]}
33... dxe1=Q {[%clk 0:01:07.7]} 34. Rxe1 {[%clk 0:00:09]} 34... Qxe1 {[%clk
0:01:08.6]} 35. Nxf7 {[%clk 0:00:09.2]} 35... Qh1+ {[%clk 0:01:08.2]} 36. Kg3
{[%clk 0:00:09.4]} 36... Qxh5 {[%clk 0:01:08.4]} 37. Nxd6+ {[%clk 0:00:09.6]}
37... Kd7 {[%clk 0:01:03.5]} 38. gxh5 {[%clk 0:00:10.3]} 38... Ne5 {[%clk
0:00:50]} 39. h6 {[%clk 0:00:09.6]} 39... Kxd6 {[%clk 0:00:46.6]} 40. h7 {[%clk
0:00:09.2]} 40... Ra8 {[%clk 0:00:46.3]} 41. h8=Q {[%clk 0:00:09.2]} 41... Rxh8
{[%clk 0:00:46.4]} 42. Bxh8 {[%clk 0:00:10.1]} 42... Kd5 {[%clk 0:00:35.5]} 43.
Bg7 {[%clk 0:00:07.6]} 43... Ke4 {[%clk 0:00:30]} 44. Kh4 {[%clk 0:00:05.8]}
44... Kf5 {[%clk 0:00:24.7]} 45. Kh5 {[%clk 0:00:06.1]} 45... Nf7 {[%clk
0:00:24.4]} 46. Kh4 {[%clk 0:00:05.6]} 46... Ne5 {[%clk 0:00:21.2]} 47. Kg3
{[%clk 0:00:05.4]} 47... b5 {[%clk 0:00:19.7]} 48. Kf2 {[%clk 0:00:04.6]} 48...
Ke4 {[%clk 0:00:18.1]} 49. Ke2 {[%clk 0:00:05]} 49... Nf7 {[%clk 0:00:17.7]} 50.
Bf8 {[%clk 0:00:05.2]} 50... Kf5 {[%clk 0:00:16.8]} 51. Be7 {[%clk 0:00:05.7]}
51... Ke4 {[%clk 0:00:16.5]} 52. Kf2 {[%clk 0:00:05.9]} 52... d3 {[%clk
0:00:13.5]} 53. cxd3+ {[%clk 0:00:05.8]} 53... Kxd3 {[%clk 0:00:14.4]} 54. Kf3
{[%clk 0:00:06.2]} 54... Kc2 {[%clk 0:00:14.7]} 55. Ke4 {[%clk 0:00:06.2]} 55...
Kxb2 {[%clk 0:00:08.1]} 56. Kd5 {[%clk 0:00:06.4]} 56... Kb3 {[%clk 0:00:06.5]}
57. Bb4 {[%clk 0:00:05.8]} 57... Nh6 {[%clk 0:00:04.4]} 58. Ke6 {[%clk
0:00:05.8]} 58... Kc4 {[%clk 0:00:04]} 59. Bd2 {[%clk 0:00:05.6]} 59... b4
{[%clk 0:00:02.9]} 60. Bxh6 {[%clk 0:00:04.5]} 60... bxa3 {[%clk 0:00:02.5]} 61.
f7 {[%clk 0:00:04.6]} 61... a2 {[%clk 0:00:03.1]} 62. Bg7 {[%clk 0:00:04.8]}
62... a1=Q {[%clk 0:00:03.3]} 63. Bxa1 {[%clk 0:00:04.5]} 63... Kb3 {[%clk
0:00:03.7]} 64. f8=Q {[%clk 0:00:04.8]} 64... Ka2 {[%clk 0:00:04.6]} 65. Qf1
{[%clk 0:00:04.2]} 65... a3 {[%clk 0:00:04.8]} 66. Be5 {[%clk 0:00:04.6]} 66...
Kb3 {[%clk 0:00:04.2]} 67. Qb1+ {[%clk 0:00:05.1]} 67... Ka4 {[%clk 0:00:03.7]}
68. Bc3 {[%clk 0:00:04.1]} 68... a2 {[%clk 0:00:04.6]} 69. Qb4# {[%clk
0:00:04.2]} 1-0

[Event "*** Titled Tuesday Blitz"]
[Site "Chess.com"]
[Date "2020.11.03"]
[Round "8"]
[White "petrkostenko"]
[Black "Nemsko"]
[Result "1/2-1/2"]
[WhiteElo "2436"]
[BlackElo "2370"]
[TimeControl "180+1"]
[EndTime "11:33:56 PST"]
[Termination "Game drawn by repetition"]

1. e4 {[%clk 0:02:56.4]} 1... e5 {[%clk 0:02:57.4]} 2. Nf3 {[%clk 0:02:56.4]}
2... Nc6 {[%clk 0:02:57.1]} 3. Bb5 {[%clk 0:02:56.4]} 3... a6 {[%clk 0:02:57.4]}
4. Ba4 {[%clk 0:02:56.7]} 4... Nf6 {[%clk 0:02:57.4]} 5. O-O {[%clk 0:02:57.3]}
5... Be7 {[%clk 0:02:56]} 6. Re1 {[%clk 0:02:57.3]} 6... b5 {[%clk 0:02:56.6]}
7. Bb3 {[%clk 0:02:57.9]} 7... d6 {[%clk 0:02:57.4]} 8. c3 {[%clk 0:02:58.5]}
8... O-O {[%clk 0:02:57.9]} 9. d4 {[%clk 0:02:59]} 9... Bg4 {[%clk 0:02:57.6]}
10. Be3 {[%clk 0:02:59.4]} 10... exd4 {[%clk 0:02:56.9]} 11. cxd4 {[%clk
0:02:59.6]} 11... Na5 {[%clk 0:02:57.6]} 12. Bc2 {[%clk 0:03:00.1]} 12... Nc4
{[%clk 0:02:56.8]} 13. Bc1 {[%clk 0:03:00.1]} 13... c5 {[%clk 0:02:57.5]} 14. b3
{[%clk 0:03:00.4]} 14... Nb6 {[%clk 0:02:57.4]} 15. Nbd2 {[%clk 0:03:00.7]}
15... Rc8 {[%clk 0:02:53.6]} 16. h3 {[%clk 0:03:00.6]} 16... Bh5 {[%clk
0:02:53.3]} 17. a4 {[%clk 0:02:59.8]} 17... Qc7 {[%clk 0:02:51.2]} 18. axb5
{[%clk 0:02:59.7]} 18... axb5 {[%clk 0:02:52.1]} 19. Bb2 {[%clk 0:02:47.3]}
19... c4 {[%clk 0:02:50.5]} 20. bxc4 {[%clk 0:02:46.6]} 20... bxc4 {[%clk
0:02:51.4]} 21. Bc3 {[%clk 0:02:45.8]} 21... Ra8 {[%clk 0:02:47.4]} 22. Nf1
{[%clk 0:02:26.4]} 22... Rxa1 {[%clk 0:02:37.9]} 23. Bxa1 {[%clk 0:02:26]} 23...
Ra8 {[%clk 0:02:32.2]} 24. Ng3 {[%clk 0:02:25.6]} 24... Bg6 {[%clk 0:02:32.1]}
25. Nh4 {[%clk 0:02:07.6]} 25... Nfd7 {[%clk 0:02:15.6]} 26. Nhf5 {[%clk
0:02:04.3]} 26... Bf8 {[%clk 0:02:13.8]} 27. h4 {[%clk 0:02:02.6]} 27... h6
{[%clk 0:02:05.1]} 28. h5 {[%clk 0:01:55.8]} 28... Bh7 {[%clk 0:02:05]} 29. d5
{[%clk 0:01:47.8]} 29... c3 {[%clk 0:01:54.9]} 30. Re3 {[%clk 0:01:42.1]} 30...
Ra3 {[%clk 0:01:52.5]} 31. Qc1 {[%clk 0:01:25.2]} 31... Qc5 {[%clk 0:01:38.5]}
32. Bd1 {[%clk 0:01:16.7]} 32... c2 {[%clk 0:01:25.9]} 33. Bxc2 {[%clk
0:01:16.6]} 33... Rxa1 {[%clk 0:01:18.6]} 34. Qxa1 {[%clk 0:01:17.5]} 34... Qxc2
{[%clk 0:01:18.5]} 35. Rc3 {[%clk 0:01:16.4]} 35... Qd2 {[%clk 0:01:15.8]} 36.
Rc6 {[%clk 0:01:10.7]} 36... Qf4 {[%clk 0:01:06]} 37. Qd4 {[%clk 0:01:02.7]}
37... Qe5 {[%clk 0:00:51.6]} 38. Qxe5 {[%clk 0:00:43.5]} 38... dxe5 {[%clk
0:00:52.5]} 39. d6 {[%clk 0:00:43.8]} 39... g6 {[%clk 0:00:42.4]} 40. Ne7+
{[%clk 0:00:42.5]} 40... Kg7 {[%clk 0:00:42.4]} 41. Rc7 {[%clk 0:00:39.4]} 41...
Kf6 {[%clk 0:00:28.2]} 42. Rc6 {[%clk 0:00:31.8]} 42... Bxe7 {[%clk 0:00:23.5]}
43. dxe7+ {[%clk 0:00:31.8]} 43... Kxe7 {[%clk 0:00:24.4]} 44. hxg6 {[%clk
0:00:31]} 44... fxg6 {[%clk 0:00:20.5]} 45. Nf1 {[%clk 0:00:31]} 45... Kf7
{[%clk 0:00:19.5]} 46. Ne3 {[%clk 0:00:30.5]} 46... Bg8 {[%clk 0:00:19.2]} 47.
Ng4 {[%clk 0:00:24.7]} 47... h5 {[%clk 0:00:17.6]} 48. Nxe5+ {[%clk 0:00:24.6]}
48... Nxe5 {[%clk 0:00:17.9]} 49. Rxb6 {[%clk 0:00:25.3]} 49... Kg7 {[%clk
0:00:17.6]} 50. f4 {[%clk 0:00:24.7]} 50... Ng4 {[%clk 0:00:17.8]} 51. g3 {[%clk
0:00:22.5]} 51... Bf7 {[%clk 0:00:15.3]} 52. Kg2 {[%clk 0:00:22.2]} 52... Kf8
{[%clk 0:00:13.9]} 53. Kf3 {[%clk 0:00:22]} 53... Ke7 {[%clk 0:00:14.4]} 54.
Rb7+ {[%clk 0:00:21.1]} 54... Ke8 {[%clk 0:00:10.5]} 55. Ra7 {[%clk 0:00:21.1]}
55... Kf8 {[%clk 0:00:09.4]} 56. Rc7 {[%clk 0:00:20.8]} 56... Ke8 {[%clk
0:00:09.6]} 57. Ke2 {[%clk 0:00:20.5]} 57... Be6 {[%clk 0:00:07.3]} 58. Kd3
{[%clk 0:00:19.2]} 58... Kd8 {[%clk 0:00:05.3]} 59. Rg7 {[%clk 0:00:18]} 59...
Nf2+ {[%clk 0:00:03.9]} 60. Ke3 {[%clk 0:00:17.1]} 60... Ng4+ {[%clk 0:00:02.8]}
61. Kd4 {[%clk 0:00:17]} 61... Ke8 {[%clk 0:00:01.6]} 62. Rxg6 {[%clk
0:00:16.5]} 62... Bf7 {[%clk 0:00:02.3]} 63. Rg5 {[%clk 0:00:16.6]} 63... Nf6
{[%clk 0:00:02.4]} 64. Ke5 {[%clk 0:00:14.9]} 64... Nd7+ {[%clk 0:00:02.7]} 65.
Kd6 {[%clk 0:00:14.6]} 65... Nf6 {[%clk 0:00:02.9]} 66. Re5+ {[%clk 0:00:14.4]}
66... Kf8 {[%clk 0:00:03.2]} 67. Kc5 {[%clk 0:00:13.2]} 67... Nd7+ {[%clk
0:00:03.4]} 68. Kd6 {[%clk 0:00:13.4]} 68... Nxe5 {[%clk 0:00:04.3]} 69. Kxe5
{[%clk 0:00:13.9]} 69... Ke7 {[%clk 0:00:04.6]} 70. f5 {[%clk 0:00:14.4]} 70...
Be8 {[%clk 0:00:03.9]} 71. Kf4 {[%clk 0:00:15]} 71... Kf6 {[%clk 0:00:04]} 72.
e5+ {[%clk 0:00:15.2]} 72... Ke7 {[%clk 0:00:03.6]} 73. Kg5 {[%clk 0:00:15.7]}
73... Kf8 {[%clk 0:00:02.7]} 74. e6 {[%clk 0:00:14.7]} 74... Ke7 {[%clk
0:00:03.1]} 75. g4 {[%clk 0:00:14.2]} 75... hxg4 {[%clk 0:00:03.3]} 76. Kxg4
{[%clk 0:00:14.5]} 76... Kf6 {[%clk 0:00:04.2]} 77. Kf4 {[%clk 0:00:15.2]} 77...
Bc6 {[%clk 0:00:04.6]} 78. Kg4 {[%clk 0:00:15.4]} 78... Be8 {[%clk 0:00:04.4]}
79. Kf4 {[%clk 0:00:16.3]} 79... Bc6 {[%clk 0:00:04.7]} 80. Kg4 {[%clk
0:00:15.7]} 80... Be8 {[%clk 0:00:05.3]} 1/2-1/2

[Event "*** Titled Tuesday Blitz"]
[Site "Chess.com"]
[Date "2020.11.03"]
[Round "8"]
[White "ChelsieMonica"]
[Black "lacafi"]
[Result "1-0"]
[WhiteElo "2314"]
[BlackElo "2090"]
[TimeControl "180+1"]
[EndTime "11:33:57 PST"]
[Termination "ChelsieMonica won by resignation"]

1. c4 {[%clk 0:03:00.9]} 1... f5 {[%clk 0:02:59.7]} 2. Nf3 {[%clk 0:03:00.2]}
2... Nf6 {[%clk 0:02:59.2]} 3. e3 {[%clk 0:03:00.9]} 3... g6 {[%clk 0:02:58.8]}
4. d4 {[%clk 0:02:57]} 4... Bg7 {[%clk 0:02:59.2]} 5. Be2 {[%clk 0:02:57.7]}
5... O-O {[%clk 0:02:59.2]} 6. O-O {[%clk 0:02:57.9]} 6... d6 {[%clk 0:02:59.5]}
7. Nc3 {[%clk 0:02:57.9]} 7... c6 {[%clk 0:02:59.4]} 8. d5 {[%clk 0:02:57]} 8...
e5 {[%clk 0:02:57.9]} 9. dxe6 {[%clk 0:02:56.3]} 9... Bxe6 {[%clk 0:02:57.7]}
10. Qb3 {[%clk 0:02:55.4]} 10... Bc8 {[%clk 0:02:49.2]} 11. Rd1 {[%clk
0:02:51.2]} 11... Qc7 {[%clk 0:02:48.3]} 12. Bd2 {[%clk 0:02:35.6]} 12... Na6
{[%clk 0:02:43.4]} 13. Be1 {[%clk 0:02:35.5]} 13... Nc5 {[%clk 0:02:34.2]} 14.
Qc2 {[%clk 0:02:33.5]} 14... Nce4 {[%clk 0:02:30.9]} 15. Bd3 {[%clk 0:02:26.8]}
15... Bd7 {[%clk 0:02:18.1]} 16. Rab1 {[%clk 0:02:21.7]} 16... Rae8 {[%clk
0:02:17]} 17. b4 {[%clk 0:02:17]} 17... h6 {[%clk 0:02:11.4]} 18. a4 {[%clk
0:02:13.2]} 18... g5 {[%clk 0:02:10.9]} 19. Nd4 {[%clk 0:02:09.2]} 19... Nxc3
{[%clk 0:01:43.4]} 20. Bxc3 {[%clk 0:02:07.9]} 20... f4 {[%clk 0:01:43.6]} 21.
exf4 {[%clk 0:02:02.5]} 21... gxf4 {[%clk 0:01:41.6]} 22. Nf5 {[%clk 0:02:02]}
22... Bxf5 {[%clk 0:01:32.4]} 23. Bxf5 {[%clk 0:02:02.9]} 23... d5 {[%clk
0:01:05.4]} 24. Bg6 {[%clk 0:01:56.4]} 24... Re7 {[%clk 0:00:56.6]} 25. Bd4
{[%clk 0:01:55.6]} 25... b6 {[%clk 0:00:51.5]} 26. h3 {[%clk 0:01:49.9]} 26...
Ne4 {[%clk 0:00:40.6]} 27. cxd5 {[%clk 0:01:45.2]} 27... cxd5 {[%clk 0:00:32.1]}
28. Qxc7 {[%clk 0:01:43.7]} 28... Rxc7 {[%clk 0:00:33]} 29. Bxg7 {[%clk
0:01:41]} 29... Kxg7 {[%clk 0:00:33.9]} 30. Bxe4 {[%clk 0:01:35.4]} 30... dxe4
{[%clk 0:00:34.8]} 31. Re1 {[%clk 0:01:33.8]} 31... Rc4 {[%clk 0:00:33.7]} 32.
a5 {[%clk 0:01:31]} 32... b5 {[%clk 0:00:32.8]} 33. Rbd1 {[%clk 0:01:29.2]}
33... Rxb4 {[%clk 0:00:29.3]} 34. Rd5 {[%clk 0:01:27.9]} 34... Kf6 {[%clk
0:00:22.3]} 35. Rh5 {[%clk 0:01:23.2]} 35... Rc8 {[%clk 0:00:15.2]} 36. Rxh6+
{[%clk 0:01:22.5]} 36... Ke5 {[%clk 0:00:15.5]} 37. Ra6 {[%clk 0:01:20.4]} 37...
Rc7 {[%clk 0:00:14.8]} 38. h4 {[%clk 0:01:19.7]} 38... Rb2 {[%clk 0:00:13.5]}
39. h5 {[%clk 0:01:18.7]} 39... b4 {[%clk 0:00:14]} 40. h6 {[%clk 0:01:17.8]}
40... b3 {[%clk 0:00:14.4]} 41. Rg6 {[%clk 0:01:14.7]} 41... Rh7 {[%clk
0:00:13.6]} 42. Rg7 {[%clk 0:01:12.8]} 42... Rxh6 {[%clk 0:00:13.3]} 43. Rxa7
{[%clk 0:01:08.2]} 43... Rc6 {[%clk 0:00:11.4]} 44. Re7+ {[%clk 0:01:07.1]}
44... Re6 {[%clk 0:00:08.1]} 45. Rxe6+ {[%clk 0:01:06.4]} 45... Kxe6 {[%clk
0:00:09]} 46. Rxe4+ {[%clk 0:01:06.6]} 46... Kf5 {[%clk 0:00:09.3]} 47. Rb4
{[%clk 0:01:06.6]} 47... Ra2 {[%clk 0:00:09]} 48. Rxb3 {[%clk 0:01:05.4]} 48...
Rxa5 {[%clk 0:00:08.9]} 49. Kh2 {[%clk 0:01:03.1]} 49... Kg4 {[%clk 0:00:08]}
50. f3+ {[%clk 0:01:03]} 50... Kg5 {[%clk 0:00:08.4]} 51. Rb8 {[%clk 0:01:01.8]}
51... Kf5 {[%clk 0:00:08.6]} 52. Rf8+ {[%clk 0:01:00.9]} 52... Kg5 {[%clk
0:00:09.1]} 53. Kh3 {[%clk 0:01:00.3]} 53... Rb5 {[%clk 0:00:09.5]} 54. Rg8+
{[%clk 0:00:58.6]} 54... Kf5 {[%clk 0:00:09.5]} 55. Rh8 {[%clk 0:00:59.1]} 55...
Kg5 {[%clk 0:00:09.8]} 56. Rh4 {[%clk 0:00:57.6]} 56... Ra5 {[%clk 0:00:08.9]}
57. Rg4+ {[%clk 0:00:57.5]} 57... Kf5 {[%clk 0:00:09.4]} 58. Kh4 {[%clk
0:00:57.2]} 58... Ra7 {[%clk 0:00:07.7]} 59. Rg5+ {[%clk 0:00:56.5]} 59... Kf6
{[%clk 0:00:05]} 60. Kg4 {[%clk 0:00:57.4]} 60... Ra2 {[%clk 0:00:03.9]} 61.
Rf5+ {[%clk 0:00:48.6]} 61... Kg6 {[%clk 0:00:03.6]} 62. Rg5+ {[%clk 0:00:47.8]}
62... Kf6 {[%clk 0:00:03.2]} 63. Kh4 {[%clk 0:00:47.3]} 63... Ra4 {[%clk
0:00:02.7]} 64. Rg4 {[%clk 0:00:46]} 64... Kf5 {[%clk 0:00:02.6]} 65. Kh3 {[%clk
0:00:45.6]} 65... Kf6 {[%clk 0:00:02.8]} 66. g3 {[%clk 0:00:44.8]} 66... Kf5
{[%clk 0:00:02.2]} 67. Kh4 {[%clk 0:00:41.4]} 67... Rb4 {[%clk 0:00:01.7]} 68.
Rg5+ {[%clk 0:00:40.4]} 68... Kf6 {[%clk 0:00:02.2]} 69. g4 {[%clk 0:00:39.8]}
69... Ra4 {[%clk 0:00:02.2]} 70. Rf5+ {[%clk 0:00:39.8]} 70... Kg6 {[%clk
0:00:02.3]} 71. Rf8 {[%clk 0:00:38.7]} 71... Rb4 {[%clk 0:00:02.3]} 72. Rg8+
{[%clk 0:00:37.3]} 72... Kh6 {[%clk 0:00:02.1]} 73. g5+ {[%clk 0:00:34]} 73...
Kh7 {[%clk 0:00:02.6]} 74. Rf8 {[%clk 0:00:34.5]} 74... Kg6 {[%clk 0:00:02.2]}
75. Rf6+ {[%clk 0:00:33.1]} 75... Kg7 {[%clk 0:00:01.9]} 76. Kg4 {[%clk
0:00:33.6]} 76... Rb5 {[%clk 0:00:01.1]} 77. Rxf4 {[%clk 0:00:33.5]} 77... Kg6
{[%clk 0:00:01.5]} 78. Rf6+ {[%clk 0:00:29.1]} 78... Kg7 {[%clk 0:00:01.8]} 79.
f4 {[%clk 0:00:28.8]} 1-0